fUSD/lending_fUSD_20251220
["ID","MTS","AMOUNT","RATE_DAILY","PERIOD"]
[399238369,1766197838693,-500.0,0.00012431,2]
[399238370,1766197838703,-20020.38255838,0.00012441,2]
[399238371,1766197838712,-166.67,0.00012475,2]
[399238372,1766197838721,-1050.83754975,0.00012482,2]
[399238373,1766197838731,-200.0,0.00012525,2]
[399238374,1766197838740,-200.0,0.00012525,2]
[399238375,1766197838750,-500.0,0.00012525,2]
[399238376,1766197838759,-1728.39,0.00012531,2]
[399238377,1766197838771,-1165.86642347,0.00012601,2]
[399238378,1766197838783,-500.0,0.00012705,2]
[399238379,1766197838792,-1728.39,0.00012805,2]
[399238380,1766197838802,-610.0,0.00012824,2]
[399238381,1766197838812,-277.0,0.00012824,2]
[399238382,1766197838821,-255.0,0.00012855,2]
[399238383,1766197838830,-195.0,0.00012869,2]
[399238384,1766197838840,-420.0,0.00012938,2]
[399238385,1766197838849,-1680.0,0.00012961,2]
[399238386,1766197838859,-503.47867429,0.00012979,2]
[399238387,1766197838869,-16599.58129145,0.00012999,2]
[399238388,1766197838879,-20020.38255838,0.00012999,2]
[399238389,1766197838888,-250.0,0.0001307,2]
[399238390,1766197838898,-250.0,0.0001307,2]
[399238391,1766197838907,-195.0,0.0001307,2]
[399238392,1766197838916,-250.0,0.00013071,2]
[399238393,1766197838926,-200.0,0.00013073,2]
[399238394,1766197838935,-200.0,0.00013073,2]
[399238395,1766197838945,-500.0,0.00013073,2]
[399238396,1766197838955,-1728.39,0.00013079,2]
[399238397,1766197838965,-150.0,0.00013151,2]
[399238398,1766197838974,-500.0,0.00013151,2]
[399238399,1766197838984,-724.0,0.00013151,2]
[399238400,1766197838994,-500.0,0.00013151,2]
[399238401,1766197839003,-500.0,0.00013151,2]
[399238402,1766197839012,-470.0,0.00013151,2]
[399238403,1766197839021,-152.49962646,0.00013151,2]
[399238404,1766197839030,-150.97899754,0.00013151,2]
[399238405,1766197839040,-500.0,0.00013151,2]
[399238406,1766197839049,-500.0,0.00013151,2]
[399238407,1766197839059,-500.0,0.00013151,2]
[399238408,1766197839068,-150.0,0.00013151,2]
[399238409,1766197839077,-150.0,0.00013151,2]
[399238410,1766197839087,-150.0,0.00013151,2]
[399238412,1766197839096,-500.0,0.00013151,2]
[399238413,1766197839106,-500.0,0.00013151,2]
[399238414,1766197839115,-150.0,0.00013151,2]
[399238415,1766197839125,-150.0,0.00013151,2]
[399238416,1766197839134,-500.0,0.00013151,2]
[399238417,1766197839143,-500.0,0.00013151,2]
[399238418,1766197839153,-150.0,0.00013151,2]
[399238419,1766197839164,-150.0,0.00013151,2]
[399238420,1766197839173,-150.0,0.00013151,2]
[399238421,1766197839183,-150.0,0.00013151,2]
[399238422,1766197839192,-553.0,0.00013151,2]
[399238423,1766197839201,-519.0,0.00013151,2]
[399238424,1766197839211,-500.0,0.00013151,2]
[399238425,1766197839220,-500.0,0.00013151,2]
[399238426,1766197839229,-588.0,0.00013151,2]
[399238427,1766197839238,-500.0,0.00013151,2]
[399238428,1766197839248,-150.0,0.00013151,2]
[399238429,1766197839257,-497.0,0.00013151,2]
[399238430,1766197839267,-150.0,0.00013151,2]
[399238431,1766197839276,-500.0,0.00013151,2]
[399238432,1766197839285,-500.0,0.00013151,2]
[399238433,1766197839295,-150.0,0.00013151,2]
[399238434,1766197839304,-150.0,0.00013151,2]
[399238435,1766197839313,-500.0,0.00013151,2]
[399238436,1766197839324,-500.0,0.00013151,2]
[399238437,1766197839333,-150.0,0.00013151,2]
[399238438,1766197839342,-500.0,0.00013151,2]
[399238439,1766197839352,-500.0,0.00013151,2]
[399238440,1766197839361,-500.0,0.00013151,2]
[399238441,1766197839371,-150.0,0.00013151,2]
[399238442,1766197839380,-150.0,0.00013151,2]
[399238443,1766197839389,-150.0,0.00013151,2]
[399238444,1766197839398,-307.6,0.00013241,2]
[399238445,1766197839407,-151.71461843,0.00013288,2]
[399238446,1766197839416,-724.0,0.00013288,2]
[399238447,1766197839425,-500.0,0.00013288,2]
[399238448,1766197839434,-500.0,0.00013288,2]
[399238449,1766197839444,-500.0,0.00013288,2]
[399238450,1766197839453,-470.0,0.00013288,2]
[399238451,1766197839462,-500.0,0.00013288,2]
[399238452,1766197839475,-500.0,0.00013288,2]
[399238454,1766197839492,-500.0,0.00013288,2]
[399238456,1766197839505,-150.0,0.00013288,2]
[399238458,1766197839515,-150.0,0.00013288,2]
[399238459,1766197839524,-150.0,0.00013288,2]
[399238460,1766197839534,-500.0,0.00013288,2]
[399238461,1766197839543,-500.0,0.00013288,2]
[399238462,1766197839552,-150.0,0.00013288,2]
[399238463,1766197839561,-150.0,0.00013288,2]
[399238464,1766197839571,-500.0,0.00013288,2]
[399238465,1766197839579,-500.0,0.00013288,2]
[399238466,1766197839589,-150.0,0.00013288,2]
[399238467,1766197839599,-150.0,0.00013288,2]
[399238468,1766197839608,-162.71079327,0.00013288,2]
[399238469,1766197839618,-150.0,0.00013288,2]
[399238470,1766197839628,-553.0,0.00013288,2]
[399238471,1766197839637,-519.0,0.00013288,2]
[399238472,1766197839647,-500.0,0.00013288,2]
[399238473,1766197839657,-500.0,0.00013288,2]
[399238474,1766197839666,-588.0,0.00013288,2]
[399238475,1766197839676,-500.0,0.00013288,2]
[399238476,1766197839685,-150.29349305,0.00013288,2]
[399238477,1766197839695,-497.0,0.00013288,2]
[399238478,1766197839703,-150.0,0.00013288,2]
[399238479,1766197839715,-500.0,0.00013288,2]
[399238480,1766197839725,-500.0,0.00013288,2]
[399238481,1766197839734,-201.2765323,0.00013288,2]
[399238482,1766197839743,-150.0,0.00013288,2]
[399238483,1766197839753,-500.0,0.00013288,2]
[399238484,1766197839765,-500.0,0.00013288,2]
[399238485,1766197839775,-150.0,0.00013288,2]
[399238486,1766197839785,-500.0,0.00013288,2]
[399238487,1766197839795,-500.0,0.00013288,2]
[399238488,1766197839804,-500.0,0.00013288,2]
[399238489,1766197839814,-158.99,0.00013317,2]
[399238490,1766197839824,-1165.86642347,0.00013317,2]
[399238491,1766197839835,-1728.39,0.00013353,2]
[399238492,1766197839845,-500.0,0.00013425,2]
[399238493,1766197839855,-724.0,0.00013425,2]
[399238494,1766197839864,-452.48830628,0.00013425,2]
[399238495,1766197839876,-500.0,0.00013425,2]
[399238496,1766197839885,-500.0,0.00013425,2]
[399238497,1766197839895,-470.0,0.00013425,2]
[399238498,1766197839906,-500.0,0.00013425,2]
[399238499,1766197839918,-501.70181775,0.00013425,2]
[399238500,1766197839928,-353.74835527,0.00013425,2]
[399238501,1766197839937,-151.21834691,0.00013425,2]
[399238502,1766197839946,-150.0,0.00013425,2]
[399238503,1766197839955,-231.95831861,0.00013425,2]
[399238504,1766197839964,-500.0,0.00013425,2]
[399238505,1766197839973,-500.0,0.00013425,2]
[399238506,1766197839982,-150.0,0.00013425,2]
[399238507,1766197839991,-151.13258847,0.00013425,2]
[399238508,1766197840000,-500.0,0.00013425,2]
[399238509,1766197840011,-500.0,0.00013425,2]
[399238510,1766197840026,-214.56501288,0.00013425,2]
[399238511,1766197840035,-150.0,0.00013425,2]
[399238512,1766197840045,-150.0,0.00013425,2]
[399238513,1766197840254,-500.0,0.00013425,2]
[399238514,1766197840264,-519.0,0.00013425,2]
[399238515,1766197840274,-553.0,0.00013425,2]
[399238516,1766197840284,-500.0,0.00013425,2]
[399238517,1766197840293,-588.0,0.00013425,2]
[399238518,1766197840303,-500.0,0.00013425,2]
[399238519,1766197840312,-497.0,0.00013425,2]
[399238520,1766197840321,-256.61900573,0.00013425,2]
[399238521,1766197840332,-356.44146346,0.00013425,2]
[399238522,1766197840342,-467.42824898,0.00013425,2]
[399238523,1766197840353,-200.99029627,0.00013425,2]
[399238524,1766197840363,-500.0,0.00013425,2]
[399238525,1766197840372,-500.0,0.00013425,2]
[399238526,1766197840381,-150.0,0.00013425,2]
[399238527,1766197840390,-500.0,0.00013425,2]
[399238528,1766197840400,-500.0,0.00013425,2]
[399238529,1766197840409,-500.0,0.00013425,2]
[399238530,1766197840418,-1000.0,0.000135,2]
[399238531,1766197840428,-166.67,0.00013504,2]
[399238532,1766197840437,-943.2419254,0.00013537,2]
[399238533,1766197840446,-1000.0,0.00013554,2]
[399238534,1766197840455,-16599.58129145,0.00013556,2]
[399238535,1766197840464,-20020.38255838,0.00013556,2]
[399238536,1766197840474,-724.0,0.00013562,2]
[399238537,1766197840483,-500.0,0.00013562,2]
[399238538,1766197840492,-500.0,0.00013562,2]
[399238539,1766197840501,-470.0,0.00013562,2]
[399238540,1766197840511,-500.0,0.00013562,2]
[399238541,1766197840520,-154.04785046,0.00013562,2]
[399238542,1766197840529,-150.0,0.00013562,2]
[399238543,1766197840538,-500.0,0.00013562,2]
[399238544,1766197840547,-150.0,0.00013562,2]
[399238545,1766197840556,-602.86533629,0.00013562,2]
[399238546,1766197840565,-500.0,0.00013562,2]
[399238547,1766197840575,-150.0,0.00013562,2]
[399238548,1766197840584,-151.82870014,0.00013562,2]
[399238549,1766197840593,-519.0,0.00013562,2]
[399238550,1766197840602,-482.01458536,0.00013562,2]
[399238551,1766197840611,-553.0,0.00013562,2]
[399238552,1766197840621,-500.0,0.00013562,2]
[399238553,1766197840630,-588.0,0.00013562,2]
[399238554,1766197840639,-500.0,0.00013562,2]
[399238555,1766197840648,-497.0,0.00013562,2]
[399238556,1766197840658,-500.0,0.00013562,2]
[399238557,1766197840667,-500.0,0.00013562,2]
[399238558,1766197840676,-150.0,0.00013562,2]
[399238559,1766197840686,-500.0,0.00013562,2]
[399238560,1766197840694,-500.0,0.00013562,2]
[399238561,1766197840703,-500.0,0.00013562,2]
[399238562,1766197840712,-200.0,0.00013621,2]
[399238563,1766197840721,-200.0,0.00013621,2]
[399238564,1766197840730,-500.0,0.00013621,2]
[399238565,1766197840739,-1728.39,0.00013627,2]
[399238566,1766197840748,-1844.95,0.00013637,2]
[399238567,1766197840761,-244.51516293,0.00013673,2]
[399238568,1766197840770,-151.0,0.0001368,2]
[399238569,1766197840779,-151.0,0.00013687,2]
[399238570,1766197840789,-500.0,0.00013698,2]
[399238571,1766197840798,-500.0,0.00013698,2]
[399238572,1766197840807,-500.0,0.00013698,2]
[399238573,1766197840816,-500.0,0.00013698,2]
[399238574,1766197840827,-500.0,0.00013698,2]
[399238575,1766197840848,-511.85238157,0.00013698,2]
[399238576,1766197840869,-502.26583075,0.00013698,2]
[399238577,1766197840881,-500.0,0.00013698,2]
[399238578,1766197840891,-500.0,0.00013698,2]
[399238579,1766197840902,-500.0,0.00013698,2]
[399238580,1766197840912,-500.0,0.00013698,2]
[399238581,1766197840922,-500.0,0.00013698,2]
[399238582,1766197840932,-500.0,0.00013698,2]
[399238583,1766197840942,-358.06023536,0.00013698,2]
[399238584,1766197840953,-500.0,0.00013698,2]
[399238585,1766197840962,-500.0,0.00013698,2]
[399238586,1766197840971,-500.0,0.00013698,2]
[399238587,1766197840983,-500.0,0.00013698,2]
[399238588,1766197840993,-500.0,0.00013698,2]
[399238589,1766197841004,-500.0,0.00013698,2]
[399238590,1766197841015,-500.0,0.00013698,2]
[399238591,1766197841025,-500.0,0.00013698,2]
[399238592,1766197841035,-500.0,0.00013698,2]
[399238593,1766197841046,-500.0,0.00013698,2]
[399238594,1766197841060,-500.0,0.00013698,2]
[399238595,1766197841071,-500.0,0.00013698,2]
[399238596,1766197841082,-500.0,0.00013698,2]
[399238597,1766197841093,-500.0,0.00013698,2]
[399238598,1766197841103,-500.0,0.00013698,2]
[399238599,1766197841113,-500.0,0.00013698,2]
[399238600,1766197841124,-500.0,0.00013698,2]
[399238601,1766197841134,-500.0,0.00013698,2]
[399238602,1766197841145,-500.0,0.00013698,2]
[399238603,1766197841156,-500.0,0.00013698,2]
[399238604,1766197841165,-500.0,0.00013698,2]
[399238605,1766197841176,-500.0,0.00013698,2]
[399238606,1766197841188,-502.93074974,0.00013698,2]
[399238607,1766197841197,-500.0,0.00013698,2]
[399238608,1766197841208,-500.0,0.00013698,2]
[399238609,1766197841218,-500.0,0.00013698,2]
[399238610,1766197841228,-500.0,0.00013698,2]
[399238611,1766197841238,-500.0,0.00013698,2]
[399238612,1766197841248,-513.58813655,0.00013698,2]
[399238613,1766197841258,-500.0,0.00013698,2]
[399238614,1766197841268,-500.0,0.00013698,2]
[399238615,1766197841277,-500.0,0.00013698,2]
[399238616,1766197841287,-509.95949186,0.00013698,2]
[399238617,1766197841296,-500.0,0.00013698,2]
[399238618,1766197841305,-500.0,0.00013698,2]
[399238619,1766197841315,-500.0,0.00013698,2]
[399238620,1766197841324,-500.0,0.00013698,2]
[399238621,1766197841333,-500.0,0.00013698,2]
[399238622,1766197841343,-500.0,0.00013698,2]
[399238623,1766197841352,-545.71710874,0.00013698,2]
[399238624,1766197841361,-500.0,0.00013698,2]
[399238625,1766197841370,-500.0,0.00013698,2]
[399238626,1766197841379,-500.0,0.00013698,2]
[399238627,1766197841389,-500.0,0.00013698,2]
[399238628,1766197841398,-500.0,0.00013698,2]
[399238629,1766197841407,-500.0,0.00013698,2]
[399238630,1766197841416,-500.0,0.00013698,2]
[399238631,1766197841425,-500.0,0.00013698,2]
[399238632,1766197841434,-500.0,0.00013698,2]
[399238633,1766197841443,-500.0,0.00013698,2]
[399238634,1766197841452,-500.0,0.00013698,2]
[399238635,1766197841461,-500.0,0.00013698,2]
[399238636,1766197841470,-500.0,0.00013698,2]
[399238637,1766197841480,-500.0,0.00013698,2]
[399238638,1766197841489,-535.57922455,0.00013698,2]
[399238639,1766197841498,-500.0,0.00013698,2]
[399238640,1766197841508,-500.0,0.00013698,2]
[399238641,1766197841517,-500.0,0.00013698,2]
[399238642,1766197841526,-500.0,0.00013698,2]
[399238643,1766197841535,-500.0,0.00013698,2]
[399238644,1766197841552,-500.0,0.00013698,2]
[399238645,1766197841565,-500.0,0.00013698,2]
[399238646,1766197841574,-500.0,0.00013698,2]
[399238647,1766197841584,-500.0,0.00013698,2]
[399238648,1766197841593,-500.0,0.00013698,2]
[399238649,1766197841603,-500.0,0.00013698,2]
[399238650,1766197841612,-500.0,0.00013698,2]
[399238651,1766197841623,-500.0,0.00013698,2]
[399238652,1766197841632,-500.0,0.00013698,2]
[399238654,1766197841642,-500.0,0.00013698,2]
[399238655,1766197841651,-500.0,0.00013698,2]
[399238656,1766197841660,-500.0,0.00013698,2]
[399238657,1766197841670,-500.0,0.00013698,2]
[399238658,1766197841680,-500.0,0.00013698,2]
[399238659,1766197841689,-500.0,0.00013698,2]
[399238660,1766197841699,-500.0,0.00013698,2]
[399238661,1766197841709,-500.0,0.00013698,2]
[399238662,1766197841719,-500.0,0.00013698,2]
[399238663,1766197841728,-500.0,0.00013698,2]
[399238664,1766197841737,-500.0,0.00013698,2]
[399238665,1766197841747,-500.0,0.00013698,2]
[399238666,1766197841758,-500.0,0.00013698,2]
[399238667,1766197841768,-664.79,0.00013699,2]
[399238668,1766197841777,-3692.35,0.00013699,2]
[399238669,1766197841787,-5722.67,0.00013699,2]
[399238670,1766197841796,-150.99,0.00013699,2]
[399238671,1766197841805,-724.0,0.00013699,2]
[399238672,1766197841815,-154.13088921,0.00013699,2]
[399238673,1766197841824,-500.0,0.00013699,2]
[399238674,1766197841834,-470.0,0.00013699,2]
[399238675,1766197841843,-370.18922892,0.00013699,2]
[399238676,1766197841853,-500.0,0.00013699,2]
[399238677,1766197841863,-201.41286545,0.00013699,2]
[399238678,1766197841872,-500.0,0.00013699,2]
[399238679,1766197841881,-164.23762974,0.00013699,2]
[399238680,1766197841890,-519.0,0.00013699,2]
[399238681,1766197841900,-553.0,0.00013699,2]
[399238682,1766197841909,-259.12567119,0.00013699,2]
[399238683,1766197841919,-588.0,0.00013699,2]
[399238684,1766197841929,-500.0,0.00013699,2]
[399238685,1766197841939,-497.0,0.00013699,2]
[399238686,1766197841948,-500.0,0.00013699,2]
[399238687,1766197841958,-500.0,0.00013699,2]
[399238688,1766197841967,-150.0,0.00013699,2]
[399238689,1766197841976,-500.0,0.00013699,2]
[399238690,1766197841986,-500.0,0.00013699,2]
[399238691,1766197841996,-500.0,0.00013699,2]
[399238692,1766197842006,-169.3828428,0.00013699,2]
[399238693,1766197842015,-500.0,0.00013699,2]
[399238694,1766197842024,-500.0,0.00013699,2]
[399238695,1766197842034,-500.0,0.00013699,2]
[399238696,1766197842043,-500.0,0.00013699,2]
[399238697,1766197842053,-500.0,0.00013699,2]
[399238698,1766197842063,-499.72722483,0.00013699,2]
[399238699,1766197842072,-500.0,0.00013699,2]
[399238700,1766197842081,-500.0,0.00013699,2]
[399238701,1766197842091,-500.0,0.00013699,2]
[399238702,1766197842105,-500.0,0.00013699,2]
[399238703,1766197842114,-500.0,0.00013699,2]
[399238704,1766197842124,-500.0,0.00013699,2]
[399238705,1766197842134,-500.0,0.00013699,2]
[399238706,1766197842143,-500.0,0.00013699,2]
[399238707,1766197842153,-500.0,0.00013699,2]
[399238708,1766197842163,-500.0,0.00013699,2]
[399238709,1766197842172,-500.0,0.00013699,2]
[399238710,1766197842181,-500.0,0.00013699,2]
[399238711,1766197842191,-500.0,0.00013699,2]
[399238712,1766197842200,-151.0,0.00013703,2]
[399238713,1766197842210,-166.07222089,0.00013773,2]
[399238714,1766197842219,-174.74495914,0.00013773,2]
[399238715,1766197842229,-500.63598857,0.00013773,2]
[399238716,1766197842238,-172.60476821,0.00013773,2]
[399238717,1766197842248,-172.76817182,0.00013773,2]
[399238718,1766197842257,-500.0,0.00013773,2]
[399238719,1766197842266,-169.28855325,0.00013773,2]
[399238720,1766197842276,-500.0,0.00013773,2]
[399238721,1766197842286,-500.0,0.00013773,2]
[399238722,1766197842296,-500.50034776,0.00013773,2]
[399238723,1766197842305,-500.0,0.00013773,2]
[399238724,1766197842315,-500.0,0.00013773,2]
[399238725,1766197842324,-163.72295793,0.00013773,2]
[399238726,1766197842333,-500.0,0.00013773,2]
[399238727,1766197842342,-163.10613259,0.00013773,2]
[399238728,1766197842351,-165.53185787,0.00013773,2]
[399238729,1766197842360,-500.0,0.00013773,2]
[399238730,1766197842370,-500.0,0.00013773,2]
[399238731,1766197842380,-500.0,0.00013773,2]
[399238732,1766197842389,-500.0,0.00013773,2]
[399238733,1766197842399,-176.6683039,0.00013773,2]
[399238734,1766197842407,-500.0,0.00013773,2]
[399238735,1766197842417,-500.0,0.00013773,2]
[399238736,1766197842426,-536.13646338,0.00013773,2]
[399238737,1766197842435,-162.0459649,0.00013773,2]
[399238738,1766197842444,-500.0,0.00013773,2]
[399238739,1766197842453,-179.50290541,0.00013773,2]
[399238740,1766197842462,-500.0,0.00013773,2]
[399238741,1766197842472,-165.7973653,0.00013773,2]
[399238742,1766197842485,-160.23016142,0.00013773,2]
[399238743,1766197842495,-500.0,0.00013773,2]
[399238744,1766197842504,-500.0,0.00013773,2]
[399238745,1766197842513,-201.65516925,0.00013773,2]
[399238746,1766197842522,-500.0,0.00013773,2]
[399238747,1766197842531,-500.0,0.00013773,2]
[399238748,1766197842541,-500.0,0.00013773,2]
[399238749,1766197842550,-500.0,0.00013773,2]
[399238750,1766197842559,-500.0,0.00013773,2]
[399238751,1766197842569,-500.0,0.00013773,2]
[399238752,1766197842578,-500.0,0.00013773,2]
[399238753,1766197842587,-500.0,0.00013773,2]
[399238754,1766197842596,-500.0,0.00013773,2]
[399238756,1766197842606,-500.0,0.00013773,2]
[399238757,1766197842615,-500.40442135,0.00013773,2]
[399238758,1766197842625,-500.0,0.00013773,2]
[399238759,1766197842634,-500.0,0.00013773,2]
[399238760,1766197842643,-500.0,0.00013773,2]
[399238761,1766197842652,-500.0,0.00013773,2]
[399238762,1766197842661,-515.85064943,0.00013773,2]
[399238763,1766197842670,-168.59999571,0.00013773,2]
[399238764,1766197842679,-165.31243658,0.00013773,2]
[399238765,1766197842688,-315.42381846,0.00013773,2]
[399238766,1766197842697,-216.27337885,0.00013773,2]
[399238767,1766197842707,-724.0,0.00013836,2]
[399238768,1766197842716,-296.5190321,0.00013836,2]
[399238769,1766197842725,-470.0,0.00013836,2]
[399238770,1766197842734,-500.0,0.00013836,2]
[399238771,1766197842743,-500.0,0.00013836,2]
[399238772,1766197842753,-519.0,0.00013836,2]
[399238773,1766197842766,-553.0,0.00013836,2]
[399238774,1766197842775,-588.0,0.00013836,2]
[399238775,1766197842784,-500.0,0.00013836,2]
[399238776,1766197842793,-497.0,0.00013836,2]
[399238777,1766197842805,-500.0,0.00013836,2]
[399238778,1766197842814,-500.0,0.00013836,2]
[399238779,1766197842824,-217.93510683,0.00013836,2]
[399238780,1766197842834,-500.0,0.00013836,2]
[399238781,1766197842844,-500.0,0.00013836,2]
[399238782,1766197842854,-500.0,0.00013836,2]
[399238783,1766197842863,-210.4657218,0.00013884,2]
[399238784,1766197842876,-1728.39,0.00013901,2]
[399238785,1766197842885,-724.0,0.00013973,2]
[399238786,1766197842895,-470.0,0.00013973,2]
[399238787,1766197842904,-500.0,0.00013973,2]
[399238788,1766197842914,-500.0,0.00013973,2]
[399238789,1766197842924,-519.0,0.00013973,2]
[399238790,1766197842933,-553.0,0.00013973,2]
[399238791,1766197842943,-588.0,0.00013973,2]
[399238792,1766197842953,-500.0,0.00013973,2]
[399238793,1766197842962,-497.0,0.00013973,2]
[399238794,1766197842972,-500.0,0.00013973,2]
[399238795,1766197842982,-500.0,0.00013973,2]
[399238796,1766197842991,-627.04316903,0.00013973,2]
[399238797,1766197843002,-500.0,0.00013973,2]
[399238798,1766197843011,-500.0,0.00013973,2]
[399238799,1766197843021,-307.6,0.00013977,2]
[399238800,1766197843030,-433.0,0.00014022,2]
[399238801,1766197843040,-1165.86642347,0.00014034,2]
[399238802,1766197843049,-724.0,0.0001411,2]
[399238803,1766197843059,-470.0,0.0001411,2]
[399238804,1766197843069,-500.0,0.0001411,2]
[399238805,1766197843079,-500.0,0.0001411,2]
[399238806,1766197843089,-553.0,0.0001411,2]
[399238807,1766197843099,-519.0,0.0001411,2]
[399238808,1766197843109,-588.0,0.0001411,2]
[399238809,1766197843119,-500.0,0.0001411,2]
[399238810,1766197843128,-497.0,0.0001411,2]
[399238811,1766197843138,-500.0,0.0001411,2]
[399238812,1766197843148,-500.0,0.0001411,2]
[399238813,1766197843158,-500.0,0.0001411,2]
[399238814,1766197843170,-456.47386285,0.0001411,2]
[399238815,1766197843180,-16599.58129145,0.00014113,2]
[399238816,1766197843190,-20020.38255838,0.00014113,2]
[399238817,1766197843199,-152.0,0.00014133,2]
[399238818,1766197843209,-1255.0,0.00014133,2]
[399238819,1766197843219,-152.0,0.00014133,2]
[399238820,1766197843228,-1255.0,0.00014133,2]
[399238821,1766197843238,-152.0,0.00014133,2]
[399238822,1766197843247,-152.0,0.00014133,2]
[399238823,1766197843261,-152.0,0.00014133,2]
[399238824,1766197843270,-1255.0,0.00014133,2]
[399238825,1766197843280,-152.0,0.00014133,2]
[399238826,1766197843291,-152.0,0.00014133,2]
[399238827,1766197843300,-1255.0,0.00014133,2]
[399238828,1766197843310,-152.0,0.00014133,2]
[399238829,1766197843319,-1255.0,0.00014133,2]
[399238830,1766197843330,-152.0,0.00014133,2]
[399238831,1766197843339,-152.0,0.00014133,2]
[399238832,1766197843348,-1255.0,0.00014133,2]
[399238833,1766197843357,-152.0,0.00014133,2]
[399238834,1766197843366,-152.0,0.00014133,2]
[399238835,1766197843375,-1255.0,0.00014133,2]
[399238836,1766197843385,-152.0,0.00014133,2]
[399238837,1766197843394,-152.0,0.00014133,2]
[399238838,1766197843403,-1255.0,0.00014133,2]
[399238839,1766197843412,-152.0,0.00014133,2]
[399238840,1766197843421,-152.0,0.00014133,2]
[399238841,1766197843431,-1255.0,0.00014133,2]
[399238842,1766197843440,-152.0,0.00014133,2]
[399238843,1766197843449,-152.0,0.00014133,2]
[399238844,1766197843458,-835.0,0.00014133,2]
[399238845,1766197843467,-1255.0,0.00014133,2]
[399238846,1766197843476,-152.0,0.00014133,2]
[399238847,1766197843486,-152.0,0.00014133,2]
[399238848,1766197843495,-835.0,0.00014133,2]
[399238849,1766197843504,-152.0,0.00014133,2]
[399238850,1766197843513,-1255.0,0.00014133,2]
[399238851,1766197843522,-152.0,0.00014133,2]
[399238852,1766197843531,-835.0,0.00014133,2]
[399238853,1766197843541,-1255.0,0.00014133,2]
[399238854,1766197843550,-152.0,0.00014133,2]
[399238855,1766197843559,-152.0,0.00014133,2]
[399238856,1766197843569,-835.0,0.00014133,2]
[399238857,1766197843578,-1255.0,0.00014133,2]
[399238858,1766197843587,-152.0,0.00014133,2]
[399238859,1766197843596,-152.0,0.00014133,2]
[399238860,1766197843606,-835.0,0.00014133,2]
[399238861,1766197843615,-1255.0,0.00014133,2]
[399238862,1766197843624,-152.0,0.00014133,2]
[399238863,1766197843633,-835.0,0.00014133,2]
[399238864,1766197843646,-152.0,0.00014133,2]
[399238865,1766197843655,-1255.0,0.00014133,2]
[399238866,1766197843664,-152.0,0.00014133,2]
[399238867,1766197843673,-152.0,0.00014133,2]
[399238868,1766197843683,-835.0,0.00014133,2]
[399238869,1766197843692,-1359.97139237,0.00014133,2]
[399238870,1766197843701,-152.0,0.00014133,2]
[399238871,1766197843710,-835.0,0.00014133,2]
[399238872,1766197843719,-152.0,0.00014133,2]
[399238873,1766197843728,-1255.0,0.00014133,2]
[399238874,1766197843737,-152.0,0.00014133,2]